[Event "*** Titled Tuesday Blitz"]
[Site "Chess.com"]
[Date "2020.10.27"]
[Round "2"]
[White "renehp"]
[Black "ChessQueen"]
[Result "0-1"]
[WhiteElo "2458"]
[BlackElo "2731"]
[TimeControl "180+1"]
[EndTime "10:17:14 PDT"]
[Termination "ChessQueen won by checkmate"]

1. e4 {[%clk 0:02:59.6]} 1... c6 {[%clk 0:03:00.1]} 2. d4 {[%clk 0:02:57.8]}
2... d5 {[%clk 0:03:00.3]} 3. Nc3 {[%clk 0:02:58]} 3... dxe4 {[%clk 0:02:58.7]}
4. Nxe4 {[%clk 0:02:58.9]} 4... Nf6 {[%clk 0:02:59.4]} 5. Nxf6+ {[%clk
0:02:58.5]} 5... exf6 {[%clk 0:03:00.3]} 6. c3 {[%clk 0:02:57.8]} 6... Bd6
{[%clk 0:03:00.9]} 7. Bd3 {[%clk 0:02:58.1]} 7... O-O {[%clk 0:03:01.5]} 8. Ne2
{[%clk 0:02:58.6]} 8... Re8 {[%clk 0:03:00.7]} 9. Qc2 {[%clk 0:02:58.5]} 9... h5
{[%clk 0:02:59.9]} 10. O-O {[%clk 0:02:58.1]} 10... Nd7 {[%clk 0:02:59.7]} 11.
Ng3 {[%clk 0:02:54.6]} 11... h4 {[%clk 0:02:53.8]} 12. Nf5 {[%clk 0:02:54.1]}
12... Qc7 {[%clk 0:02:52.4]} 13. h3 {[%clk 0:02:52.7]} 13... Nf8 {[%clk
0:02:39.2]} 14. Nxh4 {[%clk 0:02:50.3]} 14... Ne6 {[%clk 0:02:30.3]} 15. Nf5
{[%clk 0:02:29.5]} 15... Bh2+ {[%clk 0:02:20.9]} 16. Kh1 {[%clk 0:02:29]} 16...
Bf4 {[%clk 0:02:21.8]} 17. Bxf4 {[%clk 0:01:58.6]} 17... Nxf4 {[%clk 0:02:21.5]}
18. Rae1 {[%clk 0:01:58.8]} 18... Be6 {[%clk 0:02:21.6]} 19. Ng3 {[%clk
0:01:49.1]} 19... g6 {[%clk 0:02:19.9]} 20. Re3 {[%clk 0:01:42.2]} 20... Kg7
{[%clk 0:02:18.7]} 21. Rfe1 {[%clk 0:01:22.3]} 21... Rh8 {[%clk 0:02:18.6]} 22.
Ne4 {[%clk 0:01:16.4]} 22... Rh4 {[%clk 0:02:06.8]} 23. Nc5 {[%clk 0:01:10.6]}
23... Bxh3 {[%clk 0:02:04.4]} 24. gxh3 {[%clk 0:01:06.2]} 24... Nxh3 {[%clk
0:02:04.5]} 25. Rg3 {[%clk 0:00:46.1]} 25... Nf4+ {[%clk 0:01:55.3]} 26. Kg1
{[%clk 0:00:46]} 26... Rah8 {[%clk 0:01:55.3]} 27. Be4 {[%clk 0:00:45.1]} 27...
Nh3+ {[%clk 0:01:51.5]} 28. Kf1 {[%clk 0:00:41.7]} 28... Rf4 {[%clk 0:01:45.3]}
29. Rf3 {[%clk 0:00:24.2]} 29... Ng5 {[%clk 0:01:32.1]} 30. Rxf4 {[%clk
0:00:22.2]} 30... Qxf4 {[%clk 0:01:33]} 31. Bg2 {[%clk 0:00:20.3]} 31... Rh2
{[%clk 0:01:29.6]} 32. Qd3 {[%clk 0:00:16.2]} 32... b6 {[%clk 0:01:22.3]} 33.
Ne4 {[%clk 0:00:10.9]} 33... Ne6 {[%clk 0:01:09]} 34. Qg3 {[%clk 0:00:10.2]}
34... Qh6 {[%clk 0:01:09.2]} 35. Re3 {[%clk 0:00:04.9]} 35... Nf4 {[%clk
0:01:09]} 36. Bf3 {[%clk 0:00:04.3]} 36... Rh3 {[%clk 0:01:09.3]} 37. Qg1 {[%clk
0:00:03.6]} 37... Nd5 {[%clk 0:01:08.2]} 38. Rd3 {[%clk 0:00:01.5]} 38... Qc1+
{[%clk 0:01:08.2]} 39. Kg2 {[%clk 0:00:01.8]} 39... Nf4# {[%clk 0:01:07.9]} 0-1

[Event "*** Titled Tuesday Blitz"]
[Site "Chess.com"]
[Date "2020.10.27"]
[Round "2"]
[White "NotFischer"]
[Black "MartinMatthiesen"]
[Result "0-1"]
[WhiteElo "2137"]
[BlackElo "2421"]
[TimeControl "180+1"]
[EndTime "10:17:14 PDT"]
[Termination "MartinMatthiesen won on time"]

1. e4 {[%clk 0:02:59.6]} 1... e5 {[%clk 0:02:59.4]} 2. Bc4 {[%clk 0:02:59]} 2...
Nc6 {[%clk 0:02:57.4]} 3. d3 {[%clk 0:02:57.3]} 3... Nf6 {[%clk 0:02:56.7]} 4.
Nc3 {[%clk 0:02:56.3]} 4... Na5 {[%clk 0:02:55.3]} 5. Nge2 {[%clk 0:02:43.8]}
5... Be7 {[%clk 0:02:49.3]} 6. O-O {[%clk 0:02:40.2]} 6... O-O {[%clk
0:02:48.6]} 7. f4 {[%clk 0:02:39.9]} 7... Nxc4 {[%clk 0:02:47.8]} 8. dxc4 {[%clk
0:02:39.8]} 8... d6 {[%clk 0:02:44.6]} 9. f5 {[%clk 0:02:38.5]} 9... c6 {[%clk
0:02:44.2]} 10. Ng3 {[%clk 0:02:27.9]} 10... b5 {[%clk 0:02:06.6]} 11. cxb5
{[%clk 0:02:17.5]} 11... d5 {[%clk 0:02:06.6]} 12. bxc6 {[%clk 0:02:12.8]} 12...
d4 {[%clk 0:02:06.4]} 13. Nce2 {[%clk 0:01:59.6]} 13... Qd6 {[%clk 0:02:00.4]}
14. Bg5 {[%clk 0:01:45.6]} 14... Ba6 {[%clk 0:01:53.8]} 15. Rf3 {[%clk
0:01:23.9]} 15... Qxc6 {[%clk 0:01:46.1]} 16. Bxf6 {[%clk 0:01:19]} 16... Bxf6
{[%clk 0:01:45.6]} 17. Nh5 {[%clk 0:01:18.4]} 17... Qxe4 {[%clk 0:01:33.2]} 18.
Nxf6+ {[%clk 0:01:17.7]} 18... gxf6 {[%clk 0:01:33.3]} 19. Ng3 {[%clk
0:01:17.8]} 19... Qg4 {[%clk 0:01:26.2]} 20. Nh5 {[%clk 0:01:04.2]} 20... Kh8
{[%clk 0:01:17.6]} 21. Nxf6 {[%clk 0:01:00.1]} 21... Qg5 {[%clk 0:01:16.9]} 22.
Nd7 {[%clk 0:00:48.7]} 22... Rg8 {[%clk 0:01:11.6]} 23. Rf2 {[%clk 0:00:25]}
23... Qe7 {[%clk 0:00:59]} 24. Qh5 {[%clk 0:00:07.9]} 24... Qxd7 {[%clk
0:00:53]} 25. Re1 {[%clk 0:00:06.3]} 25... f6 {[%clk 0:00:51.9]} 26. Re4 {[%clk
0:00:05.3]} 26... Bb7 {[%clk 0:00:50.9]} 27. Rh4 {[%clk 0:00:05.3]} 27... Rg5
{[%clk 0:00:43.9]} 28. Qh6 {[%clk 0:00:05.5]} 28... Qg7 {[%clk 0:00:43.8]} 0-1

[Event "*** Titled Tuesday Blitz"]
[Site "Chess.com"]
[Date "2020.10.27"]
[Round "2"]
[White "VladaSviridova"]
[Black "Oglob71"]
[Result "1-0"]
[WhiteElo "2285"]
[BlackElo "2468"]
[TimeControl "180+1"]
[EndTime "10:17:15 PDT"]
[Termination "VladaSviridova won on time"]

1. d4 {[%clk 0:03:00.9]} 1... Nf6 {[%clk 0:02:57.6]} 2. c4 {[%clk 0:03:01]} 2...
e6 {[%clk 0:02:58.1]} 3. Nf3 {[%clk 0:03:00.8]} 3... b6 {[%clk 0:02:57.7]} 4. g3
{[%clk 0:03:00.4]} 4... Bb7 {[%clk 0:02:56]} 5. Bg2 {[%clk 0:03:00.4]} 5... Bb4+
{[%clk 0:02:56.5]} 6. Bd2 {[%clk 0:02:59.8]} 6... a5 {[%clk 0:02:56.7]} 7. O-O
{[%clk 0:02:59]} 7... O-O {[%clk 0:02:57.1]} 8. a3 {[%clk 0:02:56.2]} 8... Be7
{[%clk 0:02:56.6]} 9. Nc3 {[%clk 0:02:54.3]} 9... Ne4 {[%clk 0:02:57]} 10. Rc1
{[%clk 0:02:47.9]} 10... Nxc3 {[%clk 0:01:30.6]} 11. Bxc3 {[%clk 0:02:47.4]}
11... d6 {[%clk 0:00:38.2]} 12. Re1 {[%clk 0:02:45.2]} 12... f5 {[%clk
0:00:37.9]} 13. e3 {[%clk 0:02:41.9]} 13... Be4 {[%clk 0:00:37.6]} 14. Nd2
{[%clk 0:02:27.2]} 14... Bxg2 {[%clk 0:00:36.9]} 15. Kxg2 {[%clk 0:02:26.9]}
15... Nd7 {[%clk 0:00:37.4]} 16. Nf3 {[%clk 0:02:20]} 16... Bf6 {[%clk
0:00:36.5]} 17. h4 {[%clk 0:02:15.4]} 17... Qe7 {[%clk 0:00:36.6]} 18. e4 {[%clk
0:02:07.4]} 18... f4 {[%clk 0:00:35.6]} 19. e5 {[%clk 0:02:05.4]} 19... dxe5
{[%clk 0:00:34.5]} 20. dxe5 {[%clk 0:02:05]} 20... fxg3 {[%clk 0:00:34.9]} 21.
exf6 {[%clk 0:01:56.4]} 21... Nxf6 {[%clk 0:00:35]} 22. fxg3 {[%clk 0:01:56.1]}
22... Ng4 {[%clk 0:00:33.4]} 23. Qd4 {[%clk 0:01:42.7]} 23... h5 {[%clk
0:00:31.6]} 24. Rxe6 {[%clk 0:01:31.1]} 24... Qf7 {[%clk 0:00:04.5]} 25. Ng5
{[%clk 0:01:26.2]} 25... Qf2+ {[%clk 0:00:02.5]} 26. Qxf2 {[%clk 0:01:26]} 26...
Rxf2+ {[%clk 0:00:02.9]} 27. Kg1 {[%clk 0:01:26.1]} 27... Raf8 {[%clk
0:00:03.1]} 28. Rce1 {[%clk 0:01:25.3]} 28... Rc2 {[%clk 0:00:02]} 29. Re7
{[%clk 0:01:20.3]} 29... Nf6 {[%clk 0:00:01.7]} 30. Ne6 {[%clk 0:01:14.7]} 30...
Rf7 {[%clk 0:00:01.3]} 31. Rxf7 {[%clk 0:01:14.6]} 31... Kxf7 {[%clk 0:00:01.5]}
32. Ng5+ {[%clk 0:01:15.1]} 32... Kg6 {[%clk 0:00:01.4]} 33. Ne4 {[%clk
0:00:58.6]} 33... Kf5 {[%clk 0:00:01.4]} 34. Nf2 {[%clk 0:00:55.8]} 1-0

[Event "*** Titled Tuesday Blitz"]
[Site "Chess.com"]
[Date "2020.10.27"]
[Round "2"]
[White "Shota_Azaladze"]
[Black "mishanick"]
[Result "1-0"]
[WhiteElo "2647"]
[BlackElo "2990"]
[TimeControl "180+1"]
[EndTime "10:17:21 PDT"]
[Termination "Shota_Azaladze won by resignation"]

1. g3 {[%clk 0:03:00.9]} 1... d5 {[%clk 0:02:59.9]} 2. Bg2 {[%clk 0:03:01.2]}
2... Nf6 {[%clk 0:03:00.8]} 3. d3 {[%clk 0:03:01.4]} 3... g6 {[%clk 0:03:01.2]}
4. Nd2 {[%clk 0:03:01.8]} 4... Bg7 {[%clk 0:03:01.8]} 5. e4 {[%clk 0:03:01.7]}
5... dxe4 {[%clk 0:03:00.7]} 6. dxe4 {[%clk 0:03:02]} 6... O-O {[%clk
0:03:01.3]} 7. Ngf3 {[%clk 0:02:59.2]} 7... Nc6 {[%clk 0:03:01.8]} 8. O-O {[%clk
0:02:58.7]} 8... e5 {[%clk 0:03:02.4]} 9. b3 {[%clk 0:02:50.1]} 9... a5 {[%clk
0:03:02.1]} 10. Bb2 {[%clk 0:02:49.1]} 10... Qe7 {[%clk 0:03:00.4]} 11. Nc4
{[%clk 0:02:34]} 11... Rd8 {[%clk 0:02:57.6]} 12. Qe2 {[%clk 0:02:33.2]} 12...
Re8 {[%clk 0:02:24]} 13. a4 {[%clk 0:02:25.9]} 13... b6 {[%clk 0:02:23.9]} 14.
Ba3 {[%clk 0:02:19.9]} 14... Qe6 {[%clk 0:02:23.4]} 15. Ng5 {[%clk 0:02:18.6]}
15... Qg4 {[%clk 0:02:23.2]} 16. Qxg4 {[%clk 0:02:17.8]} 16... Nxg4 {[%clk
0:02:20.1]} 17. c3 {[%clk 0:01:37.1]} 17... Bf8 {[%clk 0:02:08.1]} 18. Bxf8
{[%clk 0:01:31.6]} 18... Rxf8 {[%clk 0:02:09]} 19. Rfd1 {[%clk 0:01:30.6]} 19...
Nf6 {[%clk 0:01:54.3]} 20. Nf3 {[%clk 0:01:22.9]} 20... Re8 {[%clk 0:01:51.3]}
21. Ne3 {[%clk 0:01:07.6]} 21... Bg4 {[%clk 0:01:10.8]} 22. Nxg4 {[%clk
0:00:58.1]} 22... Nxg4 {[%clk 0:01:11.7]} 23. Rd7 {[%clk 0:00:56.9]} 23... Rac8
{[%clk 0:01:09.9]} 24. Nd2 {[%clk 0:00:42.7]} 24... Nf6 {[%clk 0:01:09.5]} 25.
Rd3 {[%clk 0:00:43.2]} 25... Rcd8 {[%clk 0:01:09.8]} 26. Rxd8 {[%clk 0:00:42.7]}
26... Rxd8 {[%clk 0:01:10.7]} 27. Nc4 {[%clk 0:00:43.2]} 27... Nd7 {[%clk
0:01:07]} 28. f3 {[%clk 0:00:31]} 28... Nc5 {[%clk 0:01:07.1]} 29. b4 {[%clk
0:00:30.8]} 29... axb4 {[%clk 0:01:07]} 30. cxb4 {[%clk 0:00:31.7]} 30... Nb3
{[%clk 0:00:59.5]} 31. Rb1 {[%clk 0:00:28.2]} 31... Nd2 {[%clk 0:00:58.3]} 32.
Nxd2 {[%clk 0:00:27.7]} 32... Rxd2 {[%clk 0:00:59.2]} 33. Rc1 {[%clk 0:00:24]}
33... Nxb4 {[%clk 0:00:59.2]} 34. Rxc7 {[%clk 0:00:23.9]} 34... Nc2 {[%clk
0:00:59.2]} 35. Bf1 {[%clk 0:00:23.5]} 35... Ne3 {[%clk 0:00:57.8]} 36. Bb5
{[%clk 0:00:22.8]} 36... Rg2+ {[%clk 0:00:56.9]} 37. Kh1 {[%clk 0:00:22.3]}
37... Rf2 {[%clk 0:00:53.3]} 38. Kg1 {[%clk 0:00:22.7]} 38... Rxf3 {[%clk
0:00:53.1]} 39. Rc3 {[%clk 0:00:21.9]} 39... f5 {[%clk 0:00:49.5]} 40. Be2
{[%clk 0:00:21.6]} 40... f4 {[%clk 0:00:44.4]} 41. Bxf3 {[%clk 0:00:20.9]} 1-0

[Event "*** Titled Tuesday Blitz"]
[Site "Chess.com"]
[Date "2020.10.27"]
[Round "2"]
[White "MashaFromRussia"]
[Black "niki_2003"]
[Result "1/2-1/2"]
[WhiteElo "2380"]
[BlackElo "1873"]
[TimeControl "180+1"]
[EndTime "10:17:27 PDT"]
[Termination "Game drawn - insufficient material"]

1. d4 {[%clk 0:02:58.2]} 1... Nf6 {[%clk 0:02:59.6]} 2. c4 {[%clk 0:02:57.7]}
2... e6 {[%clk 0:02:59.7]} 3. g3 {[%clk 0:02:57.9]} 3... d5 {[%clk 0:02:59.7]}
4. Nf3 {[%clk 0:02:58.4]} 4... Nbd7 {[%clk 0:02:56]} 5. Bg2 {[%clk 0:02:57.1]}
5... b6 {[%clk 0:02:55.6]} 6. cxd5 {[%clk 0:02:51.7]} 6... Nxd5 {[%clk
0:02:54.9]} 7. O-O {[%clk 0:02:51.4]} 7... Bb7 {[%clk 0:02:54.7]} 8. e4 {[%clk
0:02:46.2]} 8... N5f6 {[%clk 0:02:52.7]} 9. e5 {[%clk 0:02:45.7]} 9... Ne4
{[%clk 0:02:52.1]} 10. Nc3 {[%clk 0:02:45.1]} 10... Nxc3 {[%clk 0:02:50.9]} 11.
bxc3 {[%clk 0:02:46]} 11... Be7 {[%clk 0:02:50.6]} 12. h4 {[%clk 0:02:45.2]}
12... c5 {[%clk 0:02:49.8]} 13. Bg5 {[%clk 0:02:45.2]} 13... cxd4 {[%clk
0:02:45.6]} 14. cxd4 {[%clk 0:02:44.6]} 14... Bxf3 {[%clk 0:02:41.6]} 15. Qxf3
{[%clk 0:02:42.8]} 15... Rc8 {[%clk 0:02:39.5]} 16. Rac1 {[%clk 0:02:41.8]}
16... Rxc1 {[%clk 0:02:30.4]} 17. Rxc1 {[%clk 0:02:42.7]} 17... O-O {[%clk
0:02:28.6]} 18. Bxe7 {[%clk 0:02:40.9]} 18... Qxe7 {[%clk 0:02:28.7]} 19. Rc7
{[%clk 0:02:41.5]} 19... Qd8 {[%clk 0:02:24.6]} 20. Qb7 {[%clk 0:02:35.9]} 20...
Nb8 {[%clk 0:02:16.3]} 21. d5 {[%clk 0:02:35.2]} 21... Na6 {[%clk 0:01:58.7]}
22. Rd7 {[%clk 0:02:16.2]} 22... Nc5 {[%clk 0:01:36.7]} 23. Rxd8 {[%clk
0:02:12.3]} 23... Nxb7 {[%clk 0:01:36.8]} 24. Rxf8+ {[%clk 0:02:12.2]} 24...
Kxf8 {[%clk 0:01:36.7]} 25. dxe6 {[%clk 0:02:13.1]} 25... Nc5 {[%clk 0:01:34.8]}
26. exf7 {[%clk 0:02:13.4]} 26... Kxf7 {[%clk 0:01:34]} 27. Bd5+ {[%clk
0:02:14]} 27... Ke7 {[%clk 0:01:33.2]} 28. Kf1 {[%clk 0:02:14.5]} 28... Nd3
{[%clk 0:01:32.3]} 29. f4 {[%clk 0:02:13.9]} 29... Nb4 {[%clk 0:01:30.3]} 30.
Bc4 {[%clk 0:02:11.4]} 30... a6 {[%clk 0:01:26.4]} 31. Ke2 {[%clk 0:02:11.3]}
31... b5 {[%clk 0:01:26.4]} 32. Bg8 {[%clk 0:02:11]} 32... h6 {[%clk 0:01:24.9]}
33. Ke3 {[%clk 0:02:11.1]} 33... a5 {[%clk 0:01:20.1]} 34. f5 {[%clk 0:02:07]}
34... Nc2+ {[%clk 0:01:11.6]} 35. Ke4 {[%clk 0:02:02.9]} 35... a4 {[%clk
0:01:07.8]} 36. g4 {[%clk 0:02:02]} 36... b4 {[%clk 0:01:06.1]} 37. g5 {[%clk
0:02:01.3]} 37... hxg5 {[%clk 0:00:57.4]} 38. hxg5 {[%clk 0:02:02.2]} 38... b3
{[%clk 0:00:43.6]} 39. axb3 {[%clk 0:01:56.8]} 39... a3 {[%clk 0:00:43.8]} 40.
b4 {[%clk 0:01:57]} 40... Nxb4 {[%clk 0:00:43.4]} 41. f6+ {[%clk 0:01:56]} 41...
gxf6 {[%clk 0:00:43.7]} 42. exf6+ {[%clk 0:01:43.5]} 42... Kf8 {[%clk
0:00:43.8]} 43. Be6 {[%clk 0:01:27.6]} 43... a2 {[%clk 0:00:42.8]} 44. Bxa2
{[%clk 0:01:26.9]} 44... Nxa2 {[%clk 0:00:43.3]} 45. g6 {[%clk 0:01:27.8]} 45...
Nb4 {[%clk 0:00:40.5]} 46. Ke5 {[%clk 0:01:28.1]} 46... Nc6+ {[%clk 0:00:38.9]}
47. Kd6 {[%clk 0:01:28.2]} 47... Nd4 {[%clk 0:00:36.6]} 48. Kd5 {[%clk
0:01:18.2]} 48... Nf5 {[%clk 0:00:34.8]} 49. Ke5 {[%clk 0:01:13]} 49... Nh4
{[%clk 0:00:30.9]} 50. g7+ {[%clk 0:01:11.6]} 50... Kf7 {[%clk 0:00:30.6]} 51.
Kd6 {[%clk 0:01:09.3]} 51... Nf5+ {[%clk 0:00:28.9]} 52. Kd7 {[%clk 0:01:09.8]}
52... Nxg7 {[%clk 0:00:29.3]} 53. fxg7 {[%clk 0:01:09.7]} 53... Kxg7 {[%clk
0:00:29.7]} 1/2-1/2

[Event "*** Titled Tuesday Blitz"]
[Site "Chess.com"]
[Date "2020.10.27"]
[Round "2"]
[White "LileKoridze"]
[Black "pfalcon1949"]
[Result "1-0"]
[WhiteElo "2399"]
[BlackElo "1992"]
[TimeControl "180+1"]
[EndTime "10:17:29 PDT"]
[Termination "LileKoridze won by checkmate"]

1. d4 {[%clk 0:03:00.9]} 1... d5 {[%clk 0:02:58.5]} 2. c4 {[%clk 0:03:01.2]}
2... dxc4 {[%clk 0:02:56.8]} 3. e3 {[%clk 0:03:00.7]} 3... Nf6 {[%clk
0:02:52.7]} 4. Bxc4 {[%clk 0:03:00.5]} 4... e6 {[%clk 0:02:49.9]} 5. Nf3 {[%clk
0:02:59.5]} 5... c5 {[%clk 0:02:50.2]} 6. O-O {[%clk 0:02:59.3]} 6... a6 {[%clk
0:02:50.1]} 7. a4 {[%clk 0:02:59]} 7... cxd4 {[%clk 0:02:46.5]} 8. Nxd4 {[%clk
0:02:57.4]} 8... Nc6 {[%clk 0:02:46.8]} 9. Nxc6 {[%clk 0:02:56.7]} 9... bxc6
{[%clk 0:02:45]} 10. Qe2 {[%clk 0:02:55.8]} 10... Bd6 {[%clk 0:02:41.7]} 11. e4
{[%clk 0:02:52.5]} 11... Qc7 {[%clk 0:02:42]} 12. g3 {[%clk 0:02:51.9]} 12...
O-O {[%clk 0:02:38.9]} 13. Nc3 {[%clk 0:02:51.7]} 13... Bb7 {[%clk 0:02:38.3]}
14. Bg5 {[%clk 0:02:48.7]} 14... Nd7 {[%clk 0:02:30.5]} 15. Rad1 {[%clk
0:02:47.9]} 15... Nc5 {[%clk 0:02:17.1]} 16. Rfe1 {[%clk 0:02:39]} 16... e5
{[%clk 0:02:15.2]} 17. Be3 {[%clk 0:02:34.3]} 17... Rad8 {[%clk 0:02:02.4]} 18.
Qg4 {[%clk 0:02:33.1]} 18... Bc8 {[%clk 0:01:53.8]} 19. Qe2 {[%clk 0:02:28.9]}
19... Kh8 {[%clk 0:01:47.9]} 20. b4 {[%clk 0:02:20.8]} 20... Ne6 {[%clk
0:01:44.5]} 21. b5 {[%clk 0:02:19]} 21... axb5 {[%clk 0:01:42.4]} 22. axb5
{[%clk 0:02:18.8]} 22... Bb4 {[%clk 0:01:00.4]} 23. Rc1 {[%clk 0:01:53.3]} 23...
Nd4 {[%clk 0:00:55.4]} 24. Bxd4 {[%clk 0:01:07.7]} 24... exd4 {[%clk 0:00:53.7]}
25. Na2 {[%clk 0:01:07.5]} 25... Bxe1 {[%clk 0:00:52.6]} 26. Rxe1 {[%clk
0:01:07.1]} 26... c5 {[%clk 0:00:51.8]} 27. Nc1 {[%clk 0:01:05.6]} 27... f5
{[%clk 0:00:43.8]} 28. e5 {[%clk 0:01:00.3]} 28... Bb7 {[%clk 0:00:42.6]} 29.
Nd3 {[%clk 0:00:58.6]} 29... Rde8 {[%clk 0:00:41.3]} 30. Nf4 {[%clk 0:00:57.1]}
30... Ba8 {[%clk 0:00:33.8]} 31. Qh5 {[%clk 0:00:53.3]} 31... Qb6 {[%clk
0:00:17.8]} 32. e6 {[%clk 0:00:46.5]} 32... Kg8 {[%clk 0:00:12.7]} 33. e7+
{[%clk 0:00:38.8]} 33... Kh8 {[%clk 0:00:13.1]} 34. exf8=Q+ {[%clk 0:00:33.4]}
34... Rxf8 {[%clk 0:00:13.3]} 35. Re8 {[%clk 0:00:31]} 35... Qf6 {[%clk
0:00:09.6]} 36. Rxf8+ {[%clk 0:00:29.7]} 36... Qxf8 {[%clk 0:00:09]} 37. Ng6#
{[%clk 0:00:30.4]} 1-0

[Event "*** Titled Tuesday Blitz"]
[Site "Chess.com"]
[Date "2020.10.27"]
[Round "2"]
[White "Jungle_Jaguar"]
[Black "gixfantastix"]
[Result "1-0"]
[WhiteElo "2646"]
[BlackElo "2107"]
[TimeControl "180+1"]
[EndTime "10:17:30 PDT"]
[Termination "Jungle_Jaguar won on time"]

1. e4 {[%clk 0:03:00.9]} 1... c6 {[%clk 0:03:00]} 2. d4 {[%clk 0:03:00.7]} 2...
d5 {[%clk 0:03:00.9]} 3. e5 {[%clk 0:03:00.9]} 3... Bf5 {[%clk 0:03:00.4]} 4. h4
{[%clk 0:02:59.6]} 4... h5 {[%clk 0:02:58.1]} 5. c4 {[%clk 0:02:59.1]} 5... e6
{[%clk 0:02:57.4]} 6. Nc3 {[%clk 0:02:59]} 6... Ne7 {[%clk 0:02:53.7]} 7. Nge2
{[%clk 0:02:58.9]} 7... Nd7 {[%clk 0:02:39.3]} 8. Ng3 {[%clk 0:02:58.2]} 8...
Bg6 {[%clk 0:02:39]} 9. Bg5 {[%clk 0:02:58.8]} 9... Qa5 {[%clk 0:02:36.2]} 10.
Bxe7 {[%clk 0:02:34.6]} 10... Bxe7 {[%clk 0:02:37.1]} 11. cxd5 {[%clk
0:02:35.2]} 11... cxd5 {[%clk 0:02:07.5]} 12. Bd3 {[%clk 0:02:19.3]} 12... Bxd3
{[%clk 0:02:04.2]} 13. Qxd3 {[%clk 0:02:20.2]} 13... O-O-O {[%clk 0:01:48.2]}
14. a3 {[%clk 0:01:33.4]} 14... Kb8 {[%clk 0:01:42.9]} 15. f4 {[%clk 0:01:30.4]}
15... Rc8 {[%clk 0:01:39.8]} 16. Ne2 {[%clk 0:01:20.8]} 16... Nb6 {[%clk
0:01:23]} 17. g3 {[%clk 0:00:58.6]} 17... Nc4 {[%clk 0:01:21]} 18. Rb1 {[%clk
0:00:54.1]} 18... f6 {[%clk 0:01:05.5]} 19. exf6 {[%clk 0:00:45.9]} 19... gxf6
{[%clk 0:01:01.2]} 20. O-O {[%clk 0:00:46.3]} 20... Rhg8 {[%clk 0:00:58.9]} 21.
Kh2 {[%clk 0:00:46.4]} 21... Bd6 {[%clk 0:00:45.2]} 22. Ng1 {[%clk 0:00:36.8]}
22... Nxb2 {[%clk 0:00:35.4]} 23. Rxb2 {[%clk 0:00:30.6]} 23... Rxc3 {[%clk
0:00:34.8]} 24. Qh7 {[%clk 0:00:28.1]} 24... Rc2+ {[%clk 0:00:02.9]} 25. Rxc2
{[%clk 0:00:21.9]} 1-0

[Event "*** Titled Tuesday Blitz"]
[Site "Chess.com"]
[Date "2020.10.27"]
[Round "2"]
[White "TheChessChannel"]
[Black "chesslh19"]
[Result "1-0"]
[WhiteElo "2453"]
[BlackElo "2215"]
[TimeControl "180+1"]
[EndTime "10:17:30 PDT"]
[Termination "TheChessChannel won by resignation"]

1. c4 {[%clk 0:03:00.9]} 1... e6 {[%clk 0:02:59.7]} 2. g3 {[%clk 0:03:01.2]}
2... d5 {[%clk 0:03:00.1]} 3. cxd5 {[%clk 0:03:01.4]} 3... exd5 {[%clk
0:03:00.2]} 4. Nf3 {[%clk 0:03:02.3]} 4... Nf6 {[%clk 0:02:57.7]} 5. Bg2 {[%clk
0:03:02.8]} 5... c6 {[%clk 0:02:57.3]} 6. O-O {[%clk 0:03:03.1]} 6... Bg4 {[%clk
0:02:57.4]} 7. h3 {[%clk 0:03:03.3]} 7... Bxf3 {[%clk 0:02:57.2]} 8. Bxf3 {[%clk
0:03:04.2]} 8... Be7 {[%clk 0:02:56.2]} 9. Nc3 {[%clk 0:03:03.5]} 9... O-O
{[%clk 0:02:56]} 10. Qb3 {[%clk 0:03:03.2]} 10... Qb6 {[%clk 0:02:55.3]} 11.
Qxb6 {[%clk 0:03:03]} 11... axb6 {[%clk 0:02:56.2]} 12. d3 {[%clk 0:03:03.5]}
12... Nbd7 {[%clk 0:02:55.7]} 13. Bg2 {[%clk 0:03:01.5]} 13... Rfe8 {[%clk
0:02:53]} 14. e4 {[%clk 0:02:59.1]} 14... dxe4 {[%clk 0:02:48.6]} 15. dxe4
{[%clk 0:03:00]} 15... Ne5 {[%clk 0:02:17.7]} 16. Rd1 {[%clk 0:02:50.7]} 16...
Rad8 {[%clk 0:02:12.5]} 17. Be3 {[%clk 0:02:50.3]} 17... Nc4 {[%clk 0:02:08.8]}
18. Bf4 {[%clk 0:02:41.3]} 18... Nxb2 {[%clk 0:01:52]} 19. Rdb1 {[%clk
0:02:40.1]} 19... Nc4 {[%clk 0:01:46.6]} 20. Bc7 {[%clk 0:02:39.3]} 20... Rd3
{[%clk 0:01:25.7]} 21. Ne2 {[%clk 0:02:28.8]} 21... Bc5 {[%clk 0:01:08.1]} 22.
Rc1 {[%clk 0:01:59.6]} 22... b5 {[%clk 0:01:01.9]} 23. a4 {[%clk 0:01:58.5]}
23... Rd2 {[%clk 0:01:01.8]} 24. axb5 {[%clk 0:01:38.3]} 24... cxb5 {[%clk
0:00:58.3]} 25. Kf1 {[%clk 0:01:30.1]} 25... Nxe4 {[%clk 0:00:46.9]} 26. Bxe4
{[%clk 0:01:30]} 26... Rxe4 {[%clk 0:00:47.8]} 27. Ra8+ {[%clk 0:01:29.2]} 27...
Bf8 {[%clk 0:00:47.8]} 28. Nc3 {[%clk 0:01:16.7]} 28... Red4 {[%clk 0:00:25.7]}
29. Kg2 {[%clk 0:00:36]} 29... h5 {[%clk 0:00:17.7]} 30. Nxb5 {[%clk 0:00:35.6]}
30... Rd7 {[%clk 0:00:14.8]} 31. Rxc4 {[%clk 0:00:35]} 31... R2d5 {[%clk
0:00:08]} 32. Nc3 {[%clk 0:00:34.1]} 32... Rd3 {[%clk 0:00:06.7]} 33. Ba5 {[%clk
0:00:31.7]} 33... h4 {[%clk 0:00:04.2]} 34. Bb4 {[%clk 0:00:30.1]} 1-0